[Event "Esbjerg Efterår 2021 - Esbjergmesterskabet"]
[Site "Esbjerg, Denmark"]
[Date "2021.10.24"]
[Round "6.5"]
[White "Husum, Lars"]
[Black "Mortensen, Henrik"]
[Result "1-0"]
[TimeControl "1.-3. 20 min + 5 sek, 4.-7. 90 min + 30 sek"]
[WhiteElo "1876"]
[BlackElo "1991"]

1. d4 {[%clk 01:30:47]} {[%emt 00:00:12]} c5 {[%clk 01:30:25]} {[%emt
00:00:35]} 2. d5 {[%clk 01:31:09]} {[%emt 00:00:08]} d6 {[%clk 01:30:49]}
{[%emt 00:00:06]} 3. c4 {[%clk 01:31:35]} {[%emt 00:00:05]} Nf6 {[%clk
01:31:00]} {[%emt 00:00:18]} 4. Nc3 {[%clk 01:31:58]} {[%emt 00:00:07]} g6
{[%clk 01:31:19]} {[%emt 00:00:11]} 5. e4 {[%clk 01:32:22]} {[%emt 00:00:06]}
Bg7 {[%clk 01:31:37]} {[%emt 00:00:12]} 6. Bd3 {[%clk 01:32:33]} {[%emt
00:00:20]} O-O {[%clk 01:31:53]} {[%emt 00:00:13]} 7. f4 {[%clk 01:31:36]}
{[%emt 00:01:27]} e6 {[%clk 01:30:23]} {[%emt 00:02:00]} 8. Nf3 {[%clk
01:30:17]} {[%emt 00:01:49]} exd5 {[%clk 01:30:40]} {[%emt 00:00:13]} 9. cxd5
{[%clk 01:29:49]} {[%emt 00:00:58]} a6 {[%clk 01:29:16]} {[%emt 00:01:54]} 10.
a4 {[%clk 01:30:09]} {[%emt 00:00:11]} Re8 {[%clk 01:28:35]} {[%emt 00:01:10]}
11. O-O {[%clk 01:30:28]} {[%emt 00:00:11]} Nbd7 {[%clk 01:25:16]} {[%emt
00:03:48]} 12. Kh1 {[%clk 01:29:30]} {[%emt 00:01:28]} Qc7 {[%clk 01:19:07]}
{[%emt 00:06:40]} 13. Re1 {[%clk 01:25:33]} {[%emt 00:04:28]} c4 {[%clk
01:17:12]} {[%emt 00:02:25]} 14. Bc2 {[%clk 01:24:58]} {[%emt 00:01:04]} Ng4
{[%clk 01:14:01]} {[%emt 00:03:41]} 15. Re2 {[%clk 01:17:29]} {[%emt 00:07:59]}
Qc5 {[%clk 01:08:13]} {[%emt 00:06:18]} 16. Qg1 {[%clk 01:14:41]} {[%emt
00:03:18]} Qb4 {[%clk 00:59:26]} {[%emt 00:09:17]} 17. Na2 {[%clk 01:13:16]}
{[%emt 00:01:56]} Qa5 {[%clk 00:57:51]} {[%emt 00:02:04]} 18. Bd2 {[%clk
01:12:46]} {[%emt 00:00:59]} Qc7 {[%clk 00:56:49]} {[%emt 00:01:33]} 19. Nc3
{[%clk 01:09:18]} {[%emt 00:03:58]} Nc5 {[%clk 00:52:52]} {[%emt 00:04:27]} 20.
h3 {[%clk 01:07:53]} {[%emt 00:01:54]} Nf6 {[%clk 00:52:57]} {[%emt 00:00:26]}
21. Rae1 {[%clk 01:03:19]} {[%emt 00:05:05]} Nfd7 {[%clk 00:44:35]} {[%emt
00:08:51]} 22. Be3 {[%clk 00:47:43]} {[%emt 00:16:06]} Nd3 {[%clk 00:34:20]}
{[%emt 00:10:45]} 23. Bxd3 {[%clk 00:36:41]} {[%emt 00:11:32]} cxd3 {[%clk
00:34:33]} {[%emt 00:00:17]} 24. Rd2 {[%clk 00:36:58]} {[%emt 00:00:13]} Bxc3
{[%clk 00:31:28]} {[%emt 00:03:35]} 25. bxc3 {[%clk 00:37:22]} {[%emt
00:00:06]} Qxc3 {[%clk 00:29:25]} {[%emt 00:02:33]} 26. Bd4 {[%clk 00:34:59]}
{[%emt 00:02:53]} Qc4 {[%clk 00:28:30]} {[%emt 00:01:25]} 27. Qf2 {[%clk
00:33:50]} {[%emt 00:01:38]} Nc5 {[%clk 00:24:52]} {[%emt 00:04:09]} 28. Qh4
{[%clk 00:32:53]} {[%emt 00:01:26]} Nb3 {[%clk 00:17:56]} {[%emt 00:07:26]} 29.
Bb2 {[%clk 00:32:32]} {[%emt 00:00:52]} Nxd2 {[%clk 00:16:44]} {[%emt
00:01:42]} 30. Qf6 {[%clk 00:30:12]} {[%emt 00:02:50]} Re5 {[%clk 00:15:24]}
{[%emt 00:01:50]} 31. Nxe5 {[%clk 00:29:52]} {[%emt 00:00:50]} 1-0

[Event "Esbjerg Efterår 2021 - Esbjergmesterskabet"]
[Site "Esbjerg, Denmark"]
[Date "2021.10.24"]
[Round "6.6"]
[White "Pommerencke, Lars"]
[Black "Jensen, Henrik Tranberg"]
[Result "0-1"]
[TimeControl "1.-3. 20 min + 5 sek, 4.-7. 90 min + 30 sek"]
[WhiteElo "1630"]
[BlackElo "1960"]

1. c4 {[%clk 01:30:30]} {[%emt 14:07:29]} Nf6 {[%clk 01:30:14]} {[%emt
00:00:49]} 2. Nc3 {[%clk 01:30:10]} {[%emt 00:00:51]} g6 {[%clk 01:30:36]}
{[%emt 00:00:08]} 3. b3 {[%clk 01:30:22]} {[%emt 00:00:19]} Bg7 {[%clk
01:31:02]} {[%emt 00:00:03]} 4. Bb2 {[%clk 01:30:46]} {[%emt 00:00:06]} O-O
{[%clk 01:31:13]} {[%emt 00:00:19]} 5. Nf3 {[%clk 01:31:05]} {[%emt 00:00:11]}
d6 {[%clk 01:31:36]} {[%emt 00:00:08]} 6. d3 {[%clk 01:29:44]} {[%emt
00:01:51]} c5 {[%clk 01:31:09]} {[%emt 00:00:56]} 7. e4 {[%clk 01:29:55]}
{[%emt 00:00:18]} Nc6 {[%clk 01:31:26]} {[%emt 00:00:14]} 8. Be2 {[%clk
01:30:00]} {[%emt 00:00:25]} Nh5 {[%clk 01:29:41]} {[%emt 00:02:14]} 9. O-O
{[%clk 01:28:27]} {[%emt 00:02:04]} Nf4 {[%clk 01:29:36]} {[%emt 00:00:35]} 10.
Na4 {[%clk 01:27:59]} {[%emt 00:00:58]} e5 {[%clk 01:29:36]} {[%emt 00:00:31]}
11. a3 {[%clk 01:27:58]} {[%emt 00:00:30]} Nd4 {[%clk 01:23:46]} {[%emt
00:06:20]} 12. Nxd4 {[%clk 01:26:55]} {[%emt 00:01:33]} exd4 {[%clk 01:23:36]}
{[%emt 00:00:41]} 13. Bf3 {[%clk 01:27:04]} {[%emt 00:00:20]} Bd7 {[%clk
01:23:38]} {[%emt 00:00:28]} 14. Bc1 {[%clk 01:27:02]} {[%emt 00:00:31]} Be5
{[%clk 01:22:52]} {[%emt 00:01:16]} 15. Nb2 {[%clk 01:27:08]} {[%emt 00:00:25]}
Rb8 {[%clk 01:11:06]} {[%emt 00:12:16]} 16. b4 {[%clk 01:21:29]} {[%emt
00:06:08]} f5 {[%clk 00:54:05]} {[%emt 00:17:31]} 17. Bxf4 {[%clk 01:19:35]}
{[%emt 00:02:24]} Bxf4 {[%clk 00:54:32]} {[%emt 00:00:03]} 18. exf5 {[%clk
01:19:25]} {[%emt 00:00:41]} Rxf5 {[%clk 00:47:55]} {[%emt 00:07:07]} 19. g3
{[%clk 01:10:39]} {[%emt 00:09:16]} Bh6 {[%clk 00:43:45]} {[%emt 00:04:40]} 20.
Bg4 {[%clk 01:09:38]} {[%emt 00:01:31]} Re5 {[%clk 00:43:29]} {[%emt 00:00:46]}
21. Bxd7 {[%clk 01:09:32]} {[%emt 00:00:37]} Qxd7 {[%clk 00:43:55]} {[%emt
00:00:03]} 22. Re1 {[%clk 01:06:08]} {[%emt 00:03:54]} Rbe8 {[%clk 00:40:05]}
{[%emt 00:04:20]} 23. Rxe5 {[%clk 01:04:38]} {[%emt 00:02:00]} Rxe5 {[%clk
00:40:33]} {[%emt 00:00:01]} 24. Qf3 {[%clk 01:03:56]} {[%emt 00:01:12]} Qe7
{[%clk 00:38:20]} {[%emt 00:02:43]} 25. Kf1 {[%clk 01:03:31]} {[%emt 00:00:54]}
Bd2 {[%clk 00:33:55]} {[%emt 00:04:55]} 26. Rb1 {[%clk 01:03:25]} {[%emt
00:00:38]} Kg7 {[%clk 00:26:54]} {[%emt 00:07:30]} 27. b5 {[%clk 01:02:13]}
{[%emt 00:01:42]} b6 {[%clk 00:26:43]} {[%emt 00:00:41]} 28. Rd1 {[%clk
01:02:01]} {[%emt 00:00:40]} Be3 {[%clk 00:19:50]} {[%emt 00:07:24]} 29. Qc6
{[%clk 00:56:34]} {[%emt 00:05:57]} Bxf2 {[%clk 00:19:08]} {[%emt 00:01:12]} 30.
Qf3 {[%clk 00:44:12]} {[%emt 00:12:52]} Be3 {[%clk 00:11:52]} {[%emt 00:07:47]}
31. Kg2 {[%clk 00:43:12]} {[%emt 00:01:29]} Rf5 {[%clk 00:12:13]} {[%emt
00:00:09]} 32. Qe4 {[%clk 00:41:54]} {[%emt 00:01:48]} Qxe4+ {[%clk 00:12:33]}
{[%emt 00:00:10]} 33. dxe4 {[%clk 00:42:00]} {[%emt 00:00:24]} Rf2+ {[%clk
00:13:01]} {[%emt 00:00:02]} 0-1

[Event "Esbjerg Efterår 2021 - Esbjergmesterskabet"]
[Site "Esbjerg, Denmark"]
[Date "2021.10.24"]
[Round "6.7"]
[White "Jensen, Lars"]
[Black "Dybdal, Frank"]
[Result "1-0"]
[TimeControl "1.-3. 20 min + 5 sek, 4.-7. 90 min + 30 sek"]
[WhiteElo "1546"]
[BlackElo "1687"]

1. e4 {[%clk 01:30:56]} {[%emt 00:00:01]} d5 {[%clk 01:30:43]} {[%emt
00:00:18]} 2. exd5 {[%clk 01:31:19]} {[%emt 00:00:07]} Qxd5 {[%clk 01:31:06]}
{[%emt 00:00:07]} 3. c4 {[%clk 01:31:40]} {[%emt 00:00:08]} Qa5 {[%clk
01:30:31]} {[%emt 00:01:05]} 4. Nc3 {[%clk 01:32:00]} {[%emt 00:00:11]} c6
{[%clk 01:30:46]} {[%emt 00:00:15]} 5. d4 {[%clk 01:32:20]} {[%emt 00:00:10]}
Nf6 {[%clk 01:31:07]} {[%emt 00:00:09]} 6. Nf3 {[%clk 01:31:52]} {[%emt
00:00:58]} Bg4 {[%clk 01:31:26]} {[%emt 00:00:10]} 7. Be2 {[%clk 01:32:03]}
{[%emt 00:00:20]} e6 {[%clk 01:31:45]} {[%emt 00:00:10]} 8. Ne5 {[%clk
01:28:51]} {[%emt 00:03:43]} Bxe2 {[%clk 01:30:36]} {[%emt 00:01:39]} 9. Qxe2
{[%clk 01:29:17]} {[%emt 00:00:04]} Nbd7 {[%clk 01:27:57]} {[%emt 00:03:09]} 10.
Nxd7 {[%emt 00:03:00]} Kxd7 {[%clk 01:27:44]} {[%emt 00:00:40]} 11. Bd2 {[%clk
01:25:29]} {[%emt 00:01:50]} Bb4 {[%clk 01:24:02]} {[%emt 00:04:11]} 12. a3
{[%clk 01:23:26]} {[%emt 00:02:35]} Bxc3 {[%clk 01:21:22]} {[%emt 00:03:09]} 13.
Bxc3 {[%clk 01:23:14]} {[%emt 00:00:42]} Qc7 {[%clk 01:20:49]} {[%emt
00:01:03]} 14. O-O-O {[%clk 01:15:39]} {[%emt 00:08:05]} Rhe8 {[%clk 01:19:19]}
{[%emt 00:01:59]} 15. Qf3 {[%clk 00:57:58]} {[%emt 00:18:12]} Rad8 {[%clk
01:16:06]} {[%emt 00:03:43]} 16. h3 {[%clk 00:56:34]} {[%emt 00:01:55]} Kc8
{[%clk 01:14:07]} {[%emt 00:02:28]} 17. b4 {[%clk 00:55:35]} {[%emt 00:01:30]}
Qe7 {[%clk 01:11:17]} {[%emt 00:03:19]} 18. Kb2 {[%clk 00:55:01]} {[%emt
00:01:04]} Kb8 {[%clk 01:03:22]} {[%emt 00:08:25]} 19. g4 {[%clk 00:55:00]}
{[%emt 00:00:31]} Nd7 {[%clk 01:01:38]} {[%emt 00:02:15]} 20. d5 {[%clk
00:50:28]} {[%emt 00:05:02]} cxd5 {[%clk 01:01:34]} {[%emt 00:00:33]} 21. cxd5
{[%clk 00:50:48]} {[%emt 00:00:10]} e5 {[%clk 01:01:38]} {[%emt 00:00:26]} 22.
Rhe1 {[%clk 00:50:03]} {[%emt 00:01:15]} f6 {[%clk 01:00:25]} {[%emt 00:01:43]}
23. h4 {[%clk 00:45:37]} {[%emt 00:04:57]} Nb6 {[%clk 01:00:01]} {[%emt
00:00:54]} 24. Bd4 {[%clk 00:39:19]} {[%emt 00:06:48]} Nc4+ {[%clk 00:53:43]}
{[%emt 00:06:46]} 25. Kb3 {[%clk 00:37:56]} {[%emt 00:01:54]} Nd6 {[%clk
00:53:56]} {[%emt 00:00:17]} 26. Qg3 {[%clk 00:31:32]} {[%emt 00:06:54]} Qf7
{[%clk 00:51:06]} {[%emt 00:03:19]} 27. Bb2 {[%clk 00:30:47]} {[%emt 00:01:16]}
Rc8 {[%clk 00:50:26]} {[%emt 00:01:10]} 28. f4 {[%clk 00:25:31]} {[%emt
00:05:46]} Nc4 {[%clk 00:45:13]} {[%emt 00:05:42]} 29. Ba1 {[%clk 00:25:28]}
{[%emt 00:00:35]} e4 {[%clk 00:42:18]} {[%emt 00:03:24]} 30. Rd4 {[%clk
00:23:59]} {[%emt 00:01:59]} b5 {[%clk 00:39:18]} {[%emt 00:03:29]} 31. Bc3
{[%clk 00:17:44]} {[%emt 00:06:45]} Kb7 {[%clk 00:35:12]} {[%emt 00:04:37]} 32.
a4 {[%clk 00:17:44]} {[%emt 00:00:31]} bxa4+ {[%clk 00:33:11]} {[%emt
00:02:30]} 33. Kxa4 {[%clk 00:14:30]} {[%emt 00:03:45]} Qd7+ {[%clk 00:32:51]}
{[%emt 00:00:49]} 34. Kb3 {[%clk 00:14:06]} {[%emt 00:00:54]} e3 {[%clk
00:27:29]} {[%emt 00:05:51]} 35. Qf3 {[%clk 00:13:40]} {[%emt 00:00:57]} a5
{[%clk 00:18:34]} {[%emt 00:09:25]} 36. Ra1 {[%clk 00:09:22]} {[%emt 00:04:48]}
Kb8 {[%clk 00:12:26]} {[%emt 00:06:37]} 37. f5 {[%clk 00:08:54]} {[%emt
00:00:59]} Qb5 {[%clk 00:08:36]} {[%emt 00:04:20]} 38. d6 {[%clk 00:06:55]}
{[%emt 00:02:29]} axb4 {[%clk 00:04:54]} 1-0

[Event "Esbjerg Efterår 2021 - Esbjergmesterskabet"]
[Site "Esbjerg, Denmark"]
[Date "2021.10.24"]
[Round "6.8"]
[White "Pedersen, Lars Wilton"]
[Black "Vinther, Christoffer"]
[Result "1-0"]
[TimeControl "1.-3. 20 min + 5 sek, 4.-7. 90 min + 30 sek"]
[WhiteElo "1991"]
[BlackElo "1607"]

1. c4 {[%clk 01:30:28]} {[%emt 00:00:32]} e5 {[%clk 01:30:47]} {[%emt
00:00:14]} 2. Nc3 {[%clk 01:30:50]} {[%emt 00:00:07]} Nc6 {[%clk 01:30:37]}
{[%emt 00:00:41]} 3. Nf3 {[%clk 01:31:09]} {[%emt 00:00:11]} Nf6 {[%clk
01:30:02]} {[%emt 00:01:05]} 4. d4 {[%clk 01:31:22]} {[%emt 00:00:16]} exd4
{[%clk 01:30:00]} {[%emt 00:00:33]} 5. Nxd4 {[%clk 01:31:40]} {[%emt 00:00:12]}
Bc5 {[%clk 01:30:15]} {[%emt 00:00:14]} 6. e3 {[%clk 01:26:35]} {[%emt
00:05:35]} O-O {[%clk 01:29:42]} {[%emt 00:01:04]} 7. Nb3 {[%clk 01:24:10]}
{[%emt 00:02:54]} Bb4 {[%clk 01:28:23]} {[%emt 00:01:48]} 8. Bd2 {[%clk
01:20:08]} {[%emt 00:04:34]} d6 {[%clk 01:28:21]} {[%emt 00:00:32]} 9. Nd5
{[%clk 01:16:27]} {[%emt 00:04:11]} Bxd2+ {[%clk 01:23:45]} {[%emt 00:05:06]}
10. Qxd2 {[%clk 01:15:46]} {[%emt 00:01:10]} Ne4 {[%clk 01:22:44]} {[%emt
00:01:30]} 11. Qc2 {[%clk 01:15:43]} {[%emt 00:00:33]} f5 {[%clk 01:18:47]}
{[%emt 00:04:28]} 12. f4 {[%clk 01:09:31]} {[%emt 00:06:42]} Be6 {[%clk
01:14:45]} {[%emt 00:04:32]} 13. a3 {[%clk 01:08:02]} {[%emt 00:01:58]} Re8
{[%clk 01:11:04]} {[%emt 00:04:11]} 14. Bd3 {[%clk 01:06:37]} {[%emt 00:01:54]}
Bxd5 {[%clk 01:10:55]} {[%emt 00:00:40]} 15. cxd5 {[%clk 01:07:06]} {[%emt
00:00:02]} Nb8 {[%clk 01:05:24]} {[%emt 00:06:01]} 16. O-O-O {[%clk 01:03:37]}
{[%emt 00:03:58]} c6 {[%clk 01:05:34]} {[%emt 00:00:21]} 17. Nd4 {[%clk
01:01:20]} {[%emt 00:02:46]} cxd5 {[%clk 00:58:46]} {[%emt 00:07:19]} 18. Nxf5
{[%clk 01:01:12]} {[%emt 00:00:38]} Na6 {[%clk 00:59:04]} {[%emt 00:00:12]} 19.
Bxe4 {[%clk 00:58:32]} {[%emt 00:03:09]} Rxe4 {[%clk 00:55:09]} {[%emt
00:04:25]} 20. Nxd6 {[%clk 00:46:17]} {[%emt 00:12:45]} Re6 {[%clk 00:47:09]}
{[%emt 00:08:30]} 21. Nb5 {[%clk 00:43:27]} {[%emt 00:03:20]} Rc8 {[%clk
00:46:06]} {[%emt 00:01:34]} 22. Nc3 {[%clk 00:43:50]} {[%emt 00:00:07]} Rxe3
{[%clk 00:45:50]} {[%emt 00:00:45]} 23. Qd2 {[%clk 00:39:50]} {[%emt 00:04:31]}
Qe7 {[%clk 00:40:14]} {[%emt 00:06:06]} 24. Kb1 {[%clk 00:30:40]} {[%emt
00:09:40]} d4 {[%clk 00:31:03]} {[%emt 00:09:41]} 25. Qxd4 {[%clk 00:30:23]}
{[%emt 00:00:47]} Nc7 {[%clk 00:25:09]} {[%emt 00:06:24]} 26. f5 {[%clk
00:23:07]} {[%emt 00:07:46]} Re5 {[%clk 00:21:50]} {[%emt 00:03:48]} 27. Rhf1
{[%clk 00:19:49]} {[%emt 00:03:48]} Ne8 {[%clk 00:18:49]} {[%emt 00:03:32]} 28.
Nd5 {[%clk 00:19:19]} {[%emt 00:00:59]} Qd6 {[%clk 00:18:48]} {[%emt 00:00:31]}
29. f6 {[%clk 00:19:22]} {[%emt 00:00:27]} gxf6 {[%clk 00:15:34]} {[%emt
00:03:45]} 30. Nxf6+ {[%clk 00:16:00]} {[%emt 00:03:52]} Kh8 {[%emt 00:04:05]}
31. Nxe8 {[%emt 00:00:02]} Qg6+ {[%emt 00:00:07]} 32. Ka1 Qxe8 {[%emt
00:00:01]} 33. Rde1 {[%emt 00:00:02]} Rcc5 {[%emt 00:00:05]} 34. Rf5 {[%emt
00:00:02]} 1-0

[Event "Esbjerg Efterår 2021 - Esbjergmesterskabet"]
[Site "Esbjerg, Denmark"]
[Date "2021.10.24"]
[Round "6.9"]
[White "Christensen, Joel Nødskov"]
[Black "Bisercic, Zlatan"]
[Result "1/2-1/2"]
[TimeControl "1.-3. 20 min + 5 sek, 4.-7. 90 min + 30 sek"]
[WhiteElo "1404"]
[BlackElo "1300"]

1. d4 {[%clk 01:30:58]} {[%emt 00:00:01]} c6 {[%clk 01:30:15]} {[%emt
00:00:45]} 2. c4 {[%clk 01:30:32]} {[%emt 00:00:56]} a6 {[%clk 01:30:12]}
{[%emt 00:00:34]} 3. Nf3 {[%clk 01:30:45]} {[%emt 00:00:16]} d5 {[%clk
01:30:08]} {[%emt 00:00:33]} 4. cxd5 {[%clk 01:30:41]} {[%emt 00:00:35]} cxd5
{[%clk 01:30:19]} {[%emt 00:00:19]} 5. Nc3 {[%clk 01:30:46]} {[%emt 00:00:25]}
e6 {[%clk 01:30:36]} {[%emt 00:00:13]} 6. e3 {[%clk 01:30:59]} {[%emt
00:00:17]} Nc6 {[%clk 01:30:32]} {[%emt 00:00:34]} 7. Be2 {[%clk 01:30:55]}
{[%emt 00:00:34]} Nf6 {[%clk 01:30:40]} {[%emt 00:00:22]} 8. O-O {[%clk
01:30:24]} {[%emt 00:01:01]} b5 {[%clk 01:30:52]} {[%emt 00:00:18]} 9. a3
{[%clk 01:30:23]} {[%emt 00:00:31]} Bd6 {[%clk 01:25:40]} {[%emt 00:05:42]} 10.
Qc2 {[%clk 01:30:17]} {[%emt 00:00:36]} Qc7 {[%clk 01:23:41]} {[%emt 00:02:29]}
11. Bd2 {[%clk 01:30:24]} {[%emt 00:00:23]} Bd7 {[%clk 01:23:16]} {[%emt
00:00:54]} 12. Rfc1 {[%clk 01:30:01]} {[%emt 00:00:53]} Rc8 {[%clk 01:21:48]}
{[%emt 00:01:58]} 13. e4 {[%clk 01:28:13]} {[%emt 00:02:16]} dxe4 {[%clk
01:19:44]} {[%emt 00:02:36]} 14. Nxe4 {[%clk 01:28:19]} {[%emt 00:00:24]} Nxe4
{[%clk 01:18:54]} {[%emt 00:01:20]} 15. Qxe4 {[%clk 01:28:23]} {[%emt
00:00:27]} Qd8 {[%clk 01:13:14]} {[%emt 00:06:10]} 16. d5 {[%clk 01:26:41]}
{[%emt 00:02:12]} Ne7 {[%clk 01:12:54]} {[%emt 00:00:49]} 17. dxe6 {[%clk
01:26:17]} {[%emt 00:00:54]} Bxe6 {[%clk 01:13:06]} {[%emt 00:00:18]} 18. Rxc8
{[%clk 01:25:27]} {[%emt 00:01:21]} Bxc8 {[%clk 01:09:01]} {[%emt 00:04:35]} 19.
Bc3 {[%clk 01:25:20]} {[%emt 00:00:37]} f6 {[%clk 01:07:45]} {[%emt 00:01:45]}
20. Rd1 {[%clk 01:25:01]} {[%emt 00:00:50]} O-O {[%clk 01:06:47]} {[%emt
00:01:28]} 21. Bd3 {[%clk 01:24:38]} {[%emt 00:00:51]} Bf5 {[%clk 01:06:51]}
{[%emt 00:00:27]} 22. Qb7 {[%clk 01:20:38]} {[%emt 00:04:31]} Bxd3 {[%clk
01:06:53]} {[%emt 00:00:27]} 23. Rxd3 {[%clk 01:17:50]} {[%emt 00:03:19]} Bxh2+
{[%clk 01:00:06]} {[%emt 00:07:16]} 24. Kxh2 {[%clk 01:17:28]} {[%emt
00:00:53]} Qxd3 {[%clk 01:00:28]} {[%emt 00:00:08]} 25. Qxe7 {[%clk 01:17:46]}
{[%emt 00:00:11]} Rd8 {[%clk 01:00:08]} {[%emt 00:00:49]} 26. Bb4 {[%clk
01:16:50]} {[%emt 00:01:28]} Qd7 {[%clk 00:59:54]} {[%emt 00:00:43]} 27. Qe3
{[%clk 01:13:52]} {[%emt 00:03:28]} h6 {[%emt 00:03:15]} 28. Qb3+ {[%clk
01:13:38]} Kh8 {[%clk 00:57:21]} {[%emt 00:01:04]} 29. Qc2 {[%clk 01:12:13]}
{[%emt 00:01:54]} Rc8 {[%clk 00:56:54]} {[%emt 00:00:56]} 30. Qe4 {[%clk
01:11:58]} {[%emt 00:00:47]} Rc1 {[%clk 00:54:44]} {[%emt 00:02:39]} 31. Qa8+
{[%clk 01:11:56]} {[%emt 00:00:32]} Kh7 {[%clk 00:54:36]} {[%emt 00:00:38]} 32.
Qxa6 {[%clk 01:11:11]} {[%emt 00:01:15]} Qc7+ {[%clk 00:54:16]} {[%emt
00:00:46]} 33. Bd6 {[%clk 01:06:05]} {[%emt 00:05:40]} Qc4 {[%clk 00:48:21]}
{[%emt 00:06:26]} 34. Qb7 {[%clk 01:05:39]} {[%emt 00:00:55]} f5 {[%clk
00:42:01]} {[%emt 00:06:49]} 35. Be5 {[%clk 01:05:35]} {[%emt 00:00:33]} Qg4
{[%clk 00:41:35]} {[%emt 00:00:57]} 36. Qxb5 {[%clk 01:04:52]} {[%emt
00:01:13]} Qh5+ {[%clk 00:39:10]} {[%emt 00:02:54]} 37. Kg3 {[%clk 01:05:01]}
{[%emt 00:00:22]} Qg4+ {[%clk 00:31:51]} {[%emt 00:07:49]} 38. Kh2 {[%clk
01:05:10]} {[%emt 00:00:20]} 1/2-1/2

[Event "Esbjerg Efterår 2021 - Esbjergmesterskabet"]
[Site "Esbjerg, Denmark"]
[Date "2021.10.24"]
[Round "6.10"]
[White "Schou-Jørgensen, Jan"]
[Black "Jensen, Lucas"]
[Result "0-1"]
[TimeControl "1.-3. 20 min + 5 sek, 4.-7. 90 min + 30 sek"]
[WhiteElo "1722"]
[BlackElo "1372"]

1. Nf3 {[%clk 01:30:44]} {[%emt 00:00:15]} d5 {[%clk 01:30:37]} {[%emt
00:00:23]} 2. d4 {[%clk 01:30:40]} {[%emt 00:00:34]} Nf6 {[%clk 01:31:00]}
{[%emt 00:00:08]} 3. c4 {[%clk 01:30:27]} {[%emt 00:00:43]} e6 {[%clk
01:30:44]} {[%emt 00:00:46]} 4. Nc3 {[%clk 01:29:48]} {[%emt 00:01:09]} Bb4
{[%clk 01:30:10]} {[%emt 00:01:04]} 5. Bg5 {[%clk 01:24:08]} {[%emt 00:06:10]}
O-O {[%clk 01:27:49]} {[%emt 00:02:50]} 6. e3 {[%clk 01:20:37]} {[%emt
00:04:02]} c5 {[%clk 01:24:06]} {[%emt 00:04:13]} 7. Bxf6 {[%clk 01:17:17]}
{[%emt 00:03:50]} Qxf6 {[%clk 01:23:41]} {[%emt 00:00:55]} 8. a3 {[%clk
01:14:41]} {[%emt 00:03:06]} Bxc3+ {[%clk 01:20:48]} {[%emt 00:03:22]} 9. bxc3
{[%clk 01:14:59]} {[%emt 00:00:13]} Nd7 {[%clk 01:19:13]} {[%emt 00:02:05]} 10.
Bd3 {[%clk 00:58:04]} {[%emt 00:17:25]} dxc4 {[%clk 01:15:30]} {[%emt
00:04:13]} 11. Bxc4 {[%clk 00:56:27]} {[%emt 00:02:07]} b6 {[%clk 01:11:51]}
{[%emt 00:04:10]} 12. Bb5 {[%clk 00:51:41]} {[%emt 00:05:15]} Rd8 {[%clk
01:08:47]} {[%emt 00:03:34]} 13. Bxd7 {[%clk 00:38:37]} {[%emt 00:13:34]} Rxd7
{[%clk 01:08:21]} {[%emt 00:00:56]} 14. Ne5 {[%clk 00:35:40]} {[%emt 00:03:27]}
Rd6 {[%clk 01:02:49]} {[%emt 00:06:01]} 15. O-O {[%clk 00:31:27]} {[%emt
00:04:43]} Bb7 {[%clk 00:57:02]} {[%emt 00:06:18]} 16. f4 {[%clk 00:25:37]}
{[%emt 00:06:20]} Qf5 {[%clk 00:53:13]} {[%emt 00:04:19]} 17. Qe2 {[%clk
00:17:06]} {[%emt 00:09:01]} a5 {[%clk 00:48:33]} {[%emt 00:05:10]} 18. Rfb1
{[%clk 00:15:12]} {[%emt 00:02:24]} cxd4 {[%clk 00:46:59]} {[%emt 00:02:03]} 19.
cxd4 {[%clk 00:14:47]} {[%emt 00:00:56]} f6 {[%clk 00:44:58]} {[%emt 00:02:30]}
20. Nc4 {[%clk 00:12:35]} {[%emt 00:02:43]} Rc6 {[%clk 00:34:30]} {[%emt
00:10:58]} 21. Rxb6 {[%clk 00:09:05]} {[%emt 00:03:59]} Rac8 {[%clk 00:33:24]}
{[%emt 00:01:36]} 22. Rxc6 {[%clk 00:07:48]} {[%emt 00:01:48]} Rxc6 {[%clk
00:33:25]} {[%emt 00:00:28]} 23. Nd2 {[%clk 00:04:55]} {[%emt 00:03:24]} Ba6
{[%clk 00:31:37]} {[%emt 00:02:18]} 24. Qf2 {[%clk 00:04:34]} {[%emt 00:00:51]}
Rc2 {[%clk 00:29:52]} {[%emt 00:02:14]} 25. e4 {[%clk 00:04:49]} {[%emt
00:00:15]} Qb5 {[%clk 00:28:47]} {[%emt 00:01:36]} 26. Qe3 {[%clk 00:03:55]}
{[%emt 00:01:24]} Qb2 {[%clk 00:27:21]} {[%emt 00:01:56]} 27. Rd1 {[%clk
00:03:59]} {[%emt 00:00:25]} Rc3 {[%clk 00:25:44]} {[%emt 00:02:06]} 28. Qf2
{[%clk 00:02:46]} {[%emt 00:01:45]} Rxa3 {[%clk 00:18:23]} {[%emt 00:07:51]} 29.
h3 {[%clk 00:02:09]} {[%emt 00:01:07]} Rd3 {[%clk 00:16:04]} {[%emt 00:02:49]}
30. Kh2 {[%clk 00:01:44]} {[%emt 00:00:55]} Qxd4 {[%clk 00:16:05]} {[%emt
00:00:27]} 31. Qe1 {[%clk 00:01:17]} {[%emt 00:00:59]} Re3 {[%clk 00:15:02]}
{[%emt 00:01:33]} 32. Nf3 {[%clk 00:01:35]} {[%emt 00:00:12]} Qxe4 {[%clk
00:13:55]} {[%emt 00:01:37]} 33. Rd8+ {[%clk 00:01:57]} {[%emt 00:00:08]} Kf7
{[%clk 00:14:17]} {[%emt 00:00:07]} 34. Qc1 {[%clk 00:02:06]} {[%emt 00:00:20]}
Qxf4+ {[%clk 00:13:49]} {[%emt 00:00:59]} 35. Kg1 {[%clk 00:01:57]} {[%emt
00:00:38]} Rxf3 {[%clk 00:11:20]} {[%emt 00:02:59]} 0-1

[ePGN "0.1;DGT LiveChess/2.2"]